Cogmind - Beta 13 @@@ ROGUE MODE // 2024.04.03 @ 21:25:58 Player: CogEmotions! Result: Destroyed by Y-45 Defender with Heavy Assault Rifle Performance ------------- Evolutions (0) 0 Regions Visited (3) 600 Robots Destroyed (21) 105 Value Destroyed (639) 639 Prototype IDs (0) 0 Alien Tech Used (0) 0 Bonus (0) 0 TOTAL SCORE: 1344 Bonus ------- None Cogmind --------- Core Integrity 0/250 Matter 147/300 Energy 160/160 System Corruption 0% Temperature Cool (0) Movement Core (200) Ox3 Location -10/Subcaves Parts ------- > --- POWER (1) -------- Light Nuclear Core > --- PROPULSION (2) --- (None) > --- UTILITY (2) ------ Improved Heat Sink Targeting Computer > --- WEAPON (2) ------- Beam Cannon Mini Grenade Launcher > --- INVENTORY (5) ---- Armored Wheel Armored Wheel High-capacity Battery (250) Small Matter Pod (50) Mini Grenade Launcher Peak State ------------ > --- POWER ------------ Light Nuclear Core > --- PROPULSION ------- Armored Wheel Armored Wheel > --- UTILITY ---------- Small Storage Unit Targeting Computer > --- WEAPON ----------- Particle Gun Mini Grenade Launcher > --- INVENTORY -------- Armored Wheel Armored Wheel Improved Heat Sink High-capacity Battery Small Matter Pod Beam Cannon Mini Grenade Launcher [Rating: 14] Favorites ----------- Power Light Ion Engine Engine Light Ion Engine Power Core Light Nuclear Core Propulsion Armored Wheel Leg Aluminum Leg Wheel Armored Wheel Utility Targeting Computer Device Improved Heat Sink Storage Small Storage Unit Processor Targeting Computer Weapon Mini Grenade Launcher Energy Gun Particle Gun Energy Cannon Beam Cannon Ballistic Gun Assault Rifle Launcher Mini Grenade Launcher Build | -11 -10 -10 -10 ------- Run | Yrd Mat Min Sub Slots Evolved . | . . . . Power . | . . . . Propulsion . | . . . . Utility . | . . . . Weapon . | . . . . Parts Attached 19 | 6 10 3 . Power 3 | 1 1 1 . Engine 2 | 1 1 . . Core 1 | . . 1 . Reactor . | . . . . Propulsion 6 | 2 4 . . Treads . | . . . . Leg 2 | . 2 . . Wheel 4 | 2 2 . . Hover . | . . . . Flight . | . . . . Utility 3 | 1 1 1 . Device 1 | . . 1 . Storage 1 | 1 . . . Processor 1 | . 1 . . Hackware . | . . . . Protection . | . . . . Artifact . | . . . . Weapon 7 | 2 4 1 . Energy Gun 3 | . 3 . . Energy Cannon 1 | . . 1 . Ballistic Gun 2 | 2 . . . Ballistic Cannon . | . . . . Launcher 1 | . 1 . . Special Weapon . | . . . . Impact Weapon . | . . . . Slashing Weapon . | . . . . Piercing Weapon . | . . . . Special Melee Weapon . | . . . . Unidentified Prototypes . | . . . . Parts Lost 7 | . 3 2 2 Power 2 | . 1 1 . Propulsion 3 | . 1 . 2 Utility 1 | . . 1 . Weapon 1 | . 1 . . Highest Loss Streak 2 | . 1 2 2 To Critical Strikes . | . . . . Average Slot Usage (%) 92 | . 94 99 77 Engine 7 | . 13 1 . Core 5 | . . 12 14 Leg 7 | . 12 . . Wheel 16 | . 14 28 5 Device 5 | . . 12 14 Storage 8 | . 14 1 . Processor 13 | . 13 14 14 Energy Gun 4 | . 6 1 . Energy Cannon 5 | . . 12 14 Ballistic Gun 9 | . 16 . . Launcher 7 | . 2 14 14 Naked Turns . | . . . . Heaviest Build 14 | 11 14 12 10 Greatest Support 32 | 32 32 24 24 Greatest Overweight (x) 3 | . . . 3 Average Overweight (x) . | . . . 1 Largest Inventory Capacity 8 | 8 8 8 5 Average Capacity 6 | 7 8 5 5 Most Carried 8 | 4 8 8 5 Average Carried 4 | 2 5 5 5 Final Capacity 8 | 8 8 5 5 Final Carried 8 | 3 8 5 5 Class Distribution -------------------- 100% | Mutant Dominant Class ---------------- Mutant | -10/Materials Mutant | -10/Mines Mutant | -10/Subcaves Resources | -11 -10 -10 -10 ----------- Run | Yrd Mat Min Sub Matter Collected 641 | 164 410 56 11 Remotely . | . . . . Salvage Created 552 | . 453 88 11 Parts 39 | . 29 9 1 Haulers Intercepted . | . . . . Recyclers Shooed . | . . . . Parts Field Recycled . | . . . . Retrieved Matter . | . . . . Parts Self-Destructed 12 | . . . 12 Prevented . | . . . . Kills | -11 -10 -10 -10 ------- Run | Yrd Mat Min Sub Combat Hostiles Destroyed 18 | . 10 7 1 Guns 11 | . 10 1 . Cannons 1 | . . 1 . AOE 6 | . . 5 1 Classes Destroyed 6 | . 3 2 1 Builder 1 | . 1 . . Tunneler 1 | . . 1 . Watcher 1 | . 1 . . Swarmer 3 | . . 3 . Grunt 14 | . 10 4 . Subdweller 1 | . . . 1 Best Kill Streak 6 | . 6 3 1 Combat Bots Only 6 | . 6 3 1 Max Kills in Single Turn 3 | . 1 3 1 Gunslinging . | . . . . Exploded 2 | . . 2 1 Melee . | . . . . Uniques/NPCs Destroyed . | . . . . Combat | -11 -10 -10 -10 -------- Run | Yrd Mat Min Sub Hostile Shots Fired 93 | . 70 11 12 Missed 29 | . 19 4 6 Damage Taken 1079 | . 687 210 182 Core 251 | . 156 26 69 Absorbed by Shields . | . . . . Core Remaining (%) 100 | 100 . . . Volleys Fired 76 | . 57 12 7 Largest 2 | . 2 2 2 Hottest 130 | . 130 95 90 Shots Fired 132 | . 95 24 13 Gun 102 | . 95 7 . Cannon 12 | . . 5 7 Launcher 18 | . . 12 6 Special . | . . . . Kinetic 71 | . 71 . . Thermal 43 | . 24 12 7 Explosive 18 | . . 12 6 Electromagnetic . | . . . . Robot Hit Streak 14 | . 14 5 6 Robot Miss Streak 5 | . 5 2 1 Penetration Max . | . . . . Secondary Targets 1 | . 1 . . Max Gunslinging Chain 1 | . 1 . . Shots Hit Robots 80 | . 59 10 11 Core Hits 39 | . 23 13 3 Critical Kills . | . . . . Critical Parts Destroyed . | . . . . Critical Strikes . | . . . . Melee Attacks . | . . . . Impact . | . . . . Slashing . | . . . . Piercing . | . . . . Sneak Attacks . | . . . . Combat Hostiles . | . . . . Follow-up Attacks . | . . . . Damage Inflicted 1644 | . 715 628 301 Guns 751 | . 700 51 . Cannons 122 | . . 35 87 Explosions 753 | . . 539 214 Melee . | . . . . Ramming 18 | . 15 3 . Kinetic 526 | . 526 . . Thermal 347 | . 174 86 87 Explosive 753 | . . 539 214 Electromagnetic . | . . . . Impact . | . . . . Slashing . | . . . . Piercing . | . . . . Highest Corruption . | . . . . Average Corruption . | . . . . Corruption Purged . | . . . . Corruption Blocked . | . . . . Overload Shots . | . . . . Overflow Damage 3 | . . . 3 Projectiles . | . . . . Explosions 3 | . . . 3 Melee . | . . . . Knockbacks . | . . . . Impact . | . . . . Kinetic . | . . . . Secondary . | . . . . Self-Inflicted Damage 202 | . 6 112 84 Shots 8 | . . 5 3 Rammed 2 | . 1 1 . Targets Rammed 3 | . 2 1 . Kicked 1 | . 1 . . Crushed . | . . . . Highest Temperature 538 | . 538 130 . Average Temperature 150 | . 187 68 . Received Heat Transfer 441 | . 360 60 21 Effects 9 | . 9 . . Shutdowns 2 | . 2 . . Energy Bleed 1 | . 1 . . Matter Decay 1 | . 1 . . Short Circuit 1 | . 1 . . Damage (minor) 1 | . 1 . . Damage (major) 2 | . 2 . . Damage (core) 1 | . 1 . . Siege Activations . | . . . . Robots Corrupted . | . . . . Combat Hostiles . | . . . . Parts Fried . | . . . . Impact Corruptions . | . . . . Robots Melted . | . . . . Combat Hostiles . | . . . . Parts Melted 1 | . 1 . . Heat Transferred 777 | . 407 185 185 Parts Sabotaged . | . . . . Parts Stolen . | . . . . Parts Stripped . | . . . . Power Chain Reactions . | . . . . Alert | -11 -10 -10 -10 ------- Run | Yrd Mat Min Sub Peak Influence 253 | . 219 253 . Initial 40 | . . 40 . Average 103 | . 86 167 . Maximum Alert Level 1 | . 1 1 . Low Security (%) 92 | 100 95 82 . Level 1 7 | . 4 17 . Level 2 . | . . . . Level 3 . | . . . . Level 4 . | . . . . Level 5 . | . . . . High Security . | . . . . Max Security . | . . . . Squads Dispatched 1 | . 1 . . Investigation 1 | . 1 . . Extermination . | . . . . Reinforcement . | . . . . Assault . | . . . . Garrison . | . . . . Intercept . | . . . . Searches Triggered . | . . . . Construction Impeded . | . . . . Haulers Reinforced . | . . . . Active Scanning Responses . | . . . . Cargo Convoy Interrupts . | . . . . Stealth | -11 -10 -10 -10 --------- Run | Yrd Mat Min Sub Distress Signals 2 | . 2 . . Communications Jammed . | . . . . Distress Signals . | . . . . Times Spotted 24 | . 18 4 2 Peak Tracking Total 8 | . 8 2 1 Tactical Retreats . | . . . . Traps | -11 -10 -10 -10 ------- Run | Yrd Mat Min Sub Traps Triggered . | . . . . Indirectly . | . . . . Trap Hack Attempts . | . . . . Triggered . | . . . . Disarmed . | . . . . Reprogrammed . | . . . . Reused . | . . . . Traps Extracted . | . . . . Installed . | . . . . Triggered . | . . . . Machines | -11 -10 -10 -10 ---------- Run | Yrd Mat Min Sub Machines Disabled . | . . . . Max in Single Turn . | . . . . Machines Repaired . | . . . . Machines Dismantled . | . . . . Machines Sabotaged . | . . . . Overloaded Fab Kills . | . . . . Hacking | -11 -10 -10 -10 --------- Run | Yrd Mat Min Sub Machines Accessed 1 | . 1 . . Terminals 1 | . 1 . . Fabricators . | . . . . Repair Stations . | . . . . Recycling Units . | . . . . Scanalyzers . | . . . . Garrison Access . | . . . . Total Hacks 3 | . 3 . . Successful 2 | . 2 . . Failed 1 | . 1 . . Catastrophic 1 | . 1 . . Database Lockouts . | . . . . Manual . | . . . . Terminals 3 | . 3 . . Fabricators . | . . . . Repair Stations . | . . . . Recycling Units . | . . . . Scanalyzers . | . . . . Garrison Access . | . . . . Terminal Hacks 2 | . 2 . . Record 2 | . 2 . . Fabricator Hacks . | . . . . Repair Station Hacks . | . . . . Recycling Unit Hacks . | . . . . Scanalyzer . | . . . . Garrison Access Hacks . | . . . . Unauthorized Hacks . | . . . . Terminals . | . . . . Fabricators . | . . . . Repair Stations . | . . . . Recycling Units . | . . . . Scanalyzers . | . . . . Garrison Access . | . . . . Data Cores Recovered . | . . . . Used . | . . . . Hacking Detections 1 | . 1 . . Full Trace Events 1 | . 1 . . Feedback Events . | . . . . Feedback Blocked . | . . . . Robot Schematics Acquired . | . . . . Robots Built . | . . . . Authchips . | . . . . Time . | . . . . Total Robot Build Rating . | . . . . Part Schematics Acquired . | . . . . Parts Built . | . . . . Authchips . | . . . . Time . | . . . . Total Part Build Rating . | . . . . Parts Repaired . | . . . . Time . | . . . . Parts Recycled . | . . . . Recycled Matter . | . . . . Retrieved Matter . | . . . . Retrieved Components . | . . . . Parts Scanalyzed . | . . . . Part Schematics Acquired . | . . . . Parts Damaged . | . . . . Bothacking | -11 -10 -10 -10 ------------ Run | Yrd Mat Min Sub Used RIF Installer . | . . . . Robots Hacked . | . . . . Non-combat . | . . . . Combat . | . . . . Robot Hacks Applied . | . . . . Relay Couplers Released . | . . . . Fabnet Peak Effective % . | . . . . Robots Rewired . | . . . . Allies Hacked . | . . . . Hacks Repelled . | . . . . Allies | -11 -10 -10 -10 -------- Run | Yrd Mat Min Sub Total Allies . | . . . . Largest Group . | . . . . Highest-Rated Group . | . . . . Highest-Rated Ally . | . . . . Total Orders . | . . . . Ally Attacks . | . . . . Total Damage . | . . . . Kills . | . . . . Allies Corrupted . | . . . . Allies Melted . | . . . . Intel | -11 -10 -10 -10 ------- Run | Yrd Mat Min Sub Robot Analysis Total . | . . . . Derelict Logs Recovered 2 | . . 1 1 Drone Launches . | . . . . Drone Recoveries . | . . . . Exploration | -11 -10 -10 -10 ------------- Run | Yrd Mat Min Sub Turns Passed 1283 | 70 717 310 186 Spaces Moved 964 | 61 503 297 103 Core 86 | 18 . . 68 Treads . | . . . . Legs 225 | . 225 . . Wheels 653 | 43 278 297 35 Hover . | . . . . Flight . | . . . . Fastest Speed 50 | 50 90 90 90 Average Speed 105 | 85 105 90 162 Slowest Speed 200 | 100 120 90 200 Overloaded Moves . | . . . . Propulsion Burnouts . | . . . . Robots Hopped . | . . . . Cave-ins Triggered . | . . . . Exploration Rate (%) 40 | 4 77 73 9 Regions Visited 3 Branch Regions 2 Pre-discovered Areas 1 | . . 1 . Known Exits Taken . | . . . . Unknown Exits Taken 3 | 1 1 1 . Scrap Searched 2 | . . 2 . Spaces Dug . | . . . . Terrain Destroyed 163 | . . 117 46 Melee . | . . . . Projectile . | . . . . AOE 163 | . . 117 46 Terrain Rammed . | . . . . Walls Destroyed . | . . . . Machines Disabled . | . . . . Actions | -11 -10 -10 -10 --------- Run | Yrd Mat Min Sub Total 1105 | 79 601 315 110 Wait 8 | 4 4 . . Move 961 | 60 502 296 103 Hop . | . . . . Pick Up 28 | 9 17 2 . Fast Attach 1 | . 1 . . Attach 12 | 6 4 2 . Detach . | . . . . Swap 6 | . 5 1 . Drop 10 | . 9 1 . Fire 76 | . 57 12 7 Melee . | . . . . Ram 2 | . 1 1 . Kick 1 | . 1 . . Crush . | . . . . Escape Stasis . | . . . . Rewire . | . . . . Trap . | . . . . Miscellaneous . | . . . . Route ------- -11/Scrapyard -10/Materials (discovered 4 exits: [*Mat x3] / [*Min]) -10/Mines (discovered 2 exits: [*Mat] / [*Sub]) -10/Subcaves History --------- Turn | Location | Event 9 | -11/Scrapyard | Discovered new exit (range 15) 71 | -11/Scrapyard | Entered Materials 301 | -10/Materials | Discovered new exit (range 7) 318 | -10/Materials | Build established: Mutant 451 | -10/Materials | Discovered new exit (range 14) 597 | -10/Materials | Discovered new exit (range 8) 667 | -10/Materials | Core integrity fell below 50% 708 | -10/Materials | Discovered new exit (range 7) 788 | -10/Materials | Entered Mines 900 | -10/Mines | Learned location of Zion (-7) 1067 | -10/Mines | Discovered new exit (range 8) 1089 | -10/Mines | Discovered new exit (range 8) 1098 | -10/Mines | Entered Subcaves 1101 | -10/Subcaves | Learned Materials stockpile data 1137 | -10/Subcaves | Core integrity fell below 20% 1284 | -10/Subcaves | Destroyed by Y-45 Defender with Heavy Assault Rifle Last Messages --------------- EXIT=FOUND T-07 Excavator destroyed. EXIT=FOUND LOCATION=UNKNOWN AMBIENT_HEAT=-10 GOAL=ESCAPE Acquired derelict log, extracted data. Data stored: Materials stockpile data. GQ-KQD(u) builds Twisted Machinery. Arm. Wheel destroyed. Destroyed Arm. Wheel. Arm. Wheel destroyed. 0Q-157(R) destroyed. GQ-KQD(u) builds Twisted Machinery. The unstable cave ceiling collapses. Subatomizers dissect the Sub. Optics. GQ-KQD(u) builds Twisted Machinery. Acquired 11 matter. Subatomizers dissect the Sub. Optics. GQ-KQD(u) builds Twisted Machinery. Map ----- +----------------------------------------------------+ | | | | | | | | | ?????????????????????????????????????????????????? | | ?????????????????????????????????????????????????? | | ?????????????????????????????????????????????????? | | ?????????????????????????????????????????????????? | | ?????????????????????????????????????????????????? | | ?????????????????????????????????????????????????? | | ?????????????????????????????????????????????????? | | ?????????????????????????????????????????????????? | | ?????????????????????????????????????????????????? | | ?????????????????????????????????????????????????? | | ?????????????????????????????????????????????????? | | ?????????????????????????????????????????????????? | | ?????????????????????????????????????????????????? | | ?????????????????????????????????????????????????? | | ????????????????????????######???????????????????? | | ??????###??????????????## #???????????????????? | | ##???## #####?########## #???????????????????? | | ##### # # ### # ## ## #????????????????????? | | #???????? #?????????? | | # # ## ### ##???? #????????? | | ### ########## ## ## #?????????? | | ##?####????????## @ Y #????????? | | #???????????????### # #?????????? | | ??????????????????##### #### # #????????? | | ??????????????????????###???####??? #?????????? | | ?????????????????????????????????????????????????? | | ?????????????????????????????????????????????????? | | ?????????????????????????????????????????????????? | | ?????????????????????????????????????????????????? | | ?????????????????????????????????????????????????? | | ?????????????????????????????????????????????????? | | ?????????????????????????????????????????????????? | | ?????????????????????????????????????????????????? | | ?????????????????????????????????????????????????? | | ?????????????????????????????????????????????????? | | ?????????????????????????????????????????????????? | | ?????????????????????????????????????????????????? | | ?????????????????????????????????????????????????? | | ?????????????????????????????????????????????????? | | ?????????????????????????????????????????????????? | | ?????????????????????????????????????????????????? | | ?????????????????????????????????????????????????? | | ?????????????????????????????????????????????????? | | ?????????????????????????????????????????????????? | | ?????????????????????????????????????????????????? | | ?????????????????????????????????????????????????? | +----------------------------------------------------+ Best States ------------- Heat Dissipation 39 Energy Generation 14 Energy Capacity 160 Matter Stores 300 Matter Capacity 300 Sight Range 16 Terrain Scan Density 10 Evasion (%) 55 Targeting Accuracy 5 Item Schematics ----------------- None Robot Schematics ------------------ None Fabricated ------------ Nothing Alien Tech Used ----------------- None Achievements -------------- None Challenges ------------ None Game ------ Seed DynamicTrackerGreatsword Manual? 0 Play Time 00:19:03 Cumulative 8.2 hours Start 2024.04.03 @ 20:04:11 End 2024.04.03 @ 21:25:58 Sessions 1 Manual Loads 0 Difficulty Rogue Special Mode None Game No. 20 Rogue 20 Adventurer 0 Explorer 0 Win Type - Total 0 Types 0/0/0/0/0/0/0/0/0 Lore% 6 Gallery% 14 Achievement% 12 Wizard Run 0 Options --------- Layout 1 ASCII 0 Keyboard 0 Movement Mouse Keybinds 0 Fullscreen 1 Font 24/Smallcaps Map View 50x35 Zoom Use 0% Tactical HUD 0 Map Filters NONE Filters NONE Steam 1 RUN: ff9b553b-fc86-4b30-9033-649fd285b023